bitfinex/quotes_ETHUSD_20250913
["timestamp","ask_amount","ask_price","bid_price","bid_amount"]
[1757786996549,1.23,4631.1,4631.0,11.12426937]
[1757786996717,1.23,4631.1,4631.0,10.4027862]
[1757786998766,0.002,4631.6,4631.5,2.95112771]
[1757786998957,0.002,4631.6,4631.5,9.55312771]
[1757786999247,1.23,4631.6,4631.5,10.29435309]
[1757786999436,1.23,4631.6,4631.5,11.5397081]
[1757786999639,0.002,4631.6,4631.5,11.5397081]
[1757787000050,0.002,4631.6,4631.5,11.22149067]
[1757787000252,0.002,4631.6,4631.5,11.50769067]
[1757787001069,0.002,4631.6,4631.5,11.22149067]
[1757787001252,1.23,4631.6,4631.5,9.97613566]
[1757787002766,1.23,4631.6,4630.7,3.65271516]
[1757787002767,1.23,4631.6,4631.0,0.792]
[1757787002970,0.2897,4631.6,4631.2,3.792]
[1757787003172,0.9403,4631.5,4631.3,3.602]
[1757787003370,1.228,4631.4,4631.3,5.76122095]
[1757787006975,0.771,4631.4,4631.3,5.76122095]
[1757787007179,0.771,4631.4,4631.3,6.63247291]
[1757787007379,1.228,4631.4,4631.3,6.63247291]
[1757787008870,1.23,4631.4,4631.3,6.63247291]
[1757787010873,0.773,4631.4,4631.3,4.47325196]
[1757787011074,1.23,4631.4,4631.3,3.602]
[1757787011561,1.23,4631.4,4631.3,5.76122095]
[1757787013553,1.23,4631.4,4631.3,3.602]
[1757787013752,1.23,4631.4,4631.3,3.59926962]
[1757787013984,1.23,4631.4,4631.3,5.75849057]
[1757787021793,0.002,4631.9,4631.4,3.792]
[1757787021994,0.002,4631.9,4631.8,0.792]
[1757787022291,0.002,4631.9,4631.8,8.24622416]
[1757787022590,0.002,4631.9,4631.8,8.23540795]
[1757787022890,0.002,4631.9,4631.8,10.39439581]
[1757787023074,0.002,4631.9,4631.8,11.86642884]
[1757787024294,0.002,4631.9,4631.8,12.1601809]
[1757787024595,0.002,4631.9,4631.8,12.5318809]
[1757787025777,0.002,4631.9,4631.8,12.6710809]
[1757787026091,0.002,4631.9,4631.8,42.1601809]
[1757787026766,0.002,4631.9,4631.8,11.44342089]
[1757787026975,0.7821,4631.9,4631.8,11.13222089]
[1757787027291,1.2128,4631.9,4631.8,11.13222089]
[1757787028370,0.4884,4631.9,4631.8,11.13222089]
[1757787028590,0.002,4631.9,4631.8,11.44342089]
[1757787028770,0.002,4631.9,4631.8,11.86642884]
[1757787028970,0.002,4631.9,4631.8,12.1601809]
[1757787032000,0.002,4631.9,4631.8,11.86642884]
[1757787032617,0.002,4631.9,4631.8,11.55522884]
[1757787033330,0.002,4631.9,4631.8,11.86642884]
[1757787033625,0.002,4631.9,4631.8,11.55522884]
[1757787033835,0.002,4631.9,4631.8,11.86642884]
[1757787034928,0.002,4631.9,4631.8,11.55522884]
[1757787036326,0.002,4632.1,4632.0,2.15889464]
[1757787036517,0.002,4632.1,4632.0,5.77070852]
[1757787036722,0.2957,4632.1,4632.0,5.75989464]
[1757787036916,1.2128,4632.1,4632.0,5.75989464]
[1757787038032,1.2128,4632.1,4631.9,0.00544223]
[1757787038353,1.55015432,4632.1,4631.9,0.00544223]
[1757787038511,2.18588082,4632.0,4631.9,0.00544223]
[1757787039041,3.39668082,4632.0,4631.9,0.00544223]
[1757787041019,9.91568082,4632.0,4631.9,0.00544223]
[1757787041217,9.88869464,4632.0,4631.9,0.00544223]
[1757787041636,13.48969464,4632.0,4631.9,0.00544223]
[1757787041813,15.05474577,4632.0,4631.9,0.00544223]
[1757787043736,11.45374577,4632.0,4631.9,0.00544223]
[1757787043936,15.05474577,4632.0,4631.9,0.00544223]
[1757787045325,15.05674577,4632.0,4631.9,0.00544223]
[1757787053768,11.02504577,4632.0,4631.9,0.00544223]
[1757787053943,13.06099464,4632.0,4631.9,0.00544223]
[1757787054267,11.3743,4632.0,4631.9,0.00544223]
[1757787054436,7.3011,4632.0,4631.9,0.00544223]
[1757787054636,10.6084,4632.0,4631.9,0.00544223]
[1757787055970,9.46329464,4632.0,4631.9,0.00544223]
[1757787056158,13.53649464,4632.0,4631.9,0.00544223]
[1757787056549,15.10622482,4632.0,4631.9,0.00544223]
[1757787057671,13.53649464,4632.0,4631.9,0.00544223]
[1757787057973,11.3776,4632.0,4631.9,0.00544223]
[1757787059274,13.53649464,4632.0,4631.9,0.00544223]
[1757787060574,11.3776,4632.0,4631.9,0.00544223]
[1757787061164,13.53649464,4632.0,4631.9,0.00544223]
[1757787063685,11.3776,4632.0,4631.9,0.00544223]
[1757787064876,13.53649464,4632.0,4631.9,0.00544223]
[1757787066483,11.3776,4632.0,4631.9,0.00544223]
[1757787067580,13.53649464,4632.0,4631.9,0.00544223]
[1757787067769,15.106225,4632.0,4631.9,0.00544223]
[1757787068212,7.0074,4632.0,4631.9,0.00544223]
[1757787068352,6.521,4632.0,4631.9,0.29524223]
[1757787068671,6.521,4632.0,4631.9,0.66694223]
[1757787068871,10.122,4632.0,4631.9,0.66694223]
[1757787069077,6.521,4632.0,4631.9,0.66694223]
[1757787069387,10.122,4632.0,4631.9,0.66694223]
[1757787069766,10.122,4632.0,4631.9,0.29524223]
[1757787074252,6.521,4632.0,4631.9,0.29524223]
[1757787074458,10.121,4632.0,4631.9,0.66694223]
[1757787074788,10.121,4632.0,4631.9,0.29524223]
[1757787075628,6.521,4632.0,4631.9,0.29524223]
[1757787075819,0.002,4632.0,4631.9,0.54195077]
[1757787075982,0.002,4632.0,4631.9,4.54481502]
[1757787076187,0.002,4632.0,4631.9,4.53399997]
[1757787077505,0.002,4632.0,4631.9,4.39479997]
[1757787077706,0.002,4632.0,4631.9,3.97179202]
[1757787078991,0.002,4632.0,4631.9,3.60009202]
[1757787080015,1.2054,4632.0,4631.9,0.00544223]
[1757787080321,1.3126,4632.0,4631.9,0.00544223]
[1757787080522,3.47149464,4632.0,4631.9,0.00544223]
[1757787080714,7.09848082,4632.0,4631.9,0.00544223]
[1757787080914,4.9126,4632.0,4631.9,0.00544223]
[1757787081311,7.07149464,4632.0,4631.9,0.00544223]
[1757787082494,3.47149464,4632.0,4631.9,0.00544223]
[1757787082699,7.09848082,4632.0,4631.9,0.00544223]
[1757787082905,7.07149464,4632.0,4631.9,0.00544223]
[1757787083426,4.1602,4632.0,4631.9,0.00544223]
[1757787083725,4.49878618,4632.0,4631.9,0.00544223]
[1757787084033,4.9126,4632.0,4631.9,0.00544223]
[1757787084331,7.07149464,4632.0,4631.9,0.00544223]
[1757787085420,7.99471995,4632.0,4631.9,0.00544223]
[1757787085730,5.83582531,4632.0,4631.9,0.00544223]
[1757787085933,0.8718,4632.0,4631.9,0.00544223]
[1757787086136,3.7092,4632.0,4631.9,0.29634223]
[1757787087203,3.7092,4632.0,4631.9,0.00544223]
[1757787087613,3.38678082,4632.0,4631.9,0.00544223]
[1757787091646,1.22788618,4632.0,4631.9,0.00544223]
[1757787092143,4.82788618,4632.0,4631.9,0.00544223]
[1757787092439,4.8009,4632.0,4631.9,0.00544223]
[1757787092945,3.602,4632.0,4631.9,0.30164223]
[1757787094146,0.002,4632.0,4631.9,0.30164223]
[1757787094445,3.602,4632.0,4631.9,0.30164223]
[1757787094647,3.602,4632.0,4631.9,0.00544223]
[1757787095017,4.8009,4632.0,4631.9,0.00544223]
[1757787096547,1.2009,4632.0,4631.9,0.00544223]
[1757787096756,6.98678082,4632.0,4631.9,0.00544223]
[1757787096935,6.95979464,4632.0,4631.9,0.00544223]
[1757787098442,4.8009,4632.0,4631.9,0.00544223]
[1757787101770,6.95979464,4632.0,4631.9,0.00544223]
[1757787102450,7.87185426,4632.0,4631.9,0.00544223]
[1757787103715,1.65115962,4632.0,4631.9,0.00544223]
[1757787103920,4.82788618,4632.0,4631.9,0.00544223]
[1757787104170,6.95979464,4632.0,4631.9,0.00544223]
[1757787105799,6.49799464,4632.0,4631.9,0.00544223]
[1757787106114,3.602,4632.0,4631.9,0.00544223]
[1757787106283,3.62898618,4632.0,4631.9,0.00544223]
[1757787106610,5.78788082,4632.0,4631.9,0.00544223]
[1757787106812,5.78788082,4632.0,4631.9,0.30534223]
[1757787106813,2.16089464,4632.0,4631.9,0.30534223]
[1757787106995,3.62898618,4632.0,4631.9,0.30534223]
[1757787107668,5.78788082,4632.0,4631.9,0.30534223]
[1757787107866,5.76089464,4632.0,4631.9,0.30534223]
[1757787108070,6.56299464,4632.0,4631.9,0.00544223]
[1757787108304,6.99599464,4632.0,4631.9,0.00544223]
[1757787109026,7.92031413,4632.0,4631.9,0.00544223]
[1757787109744,7.48631413,4632.0,4631.9,0.00544223]
[1757787110847,5.01881949,4632.0,4631.9,0.00544223]
[1757787111049,4.0945,4632.0,4631.9,0.00544223]
[1757787111248,4.12148618,4632.0,4631.9,0.00544223]
[1757787111540,6.28038082,4632.0,4631.9,0.00544223]
[1757787111751,6.25339464,4632.0,4631.9,0.00544223]
[1757787111907,0.002,4632.0,4631.9,0.31954223]
[1757787112099,0.13618618,4632.0,4631.9,0.31954223]
[1757787112307,3.73518618,4632.0,4631.9,0.31954223]
[1757787113245,5.89408082,4632.0,4631.9,0.31954223]
[1757787113410,5.86709464,4632.0,4631.9,0.00544223]
[1757787113805,3.7082,4632.0,4631.9,0.00544223]
[1757787114006,3.7082,4632.0,4631.9,0.31954223]
[1757787114208,0.1092,4632.0,4631.9,0.31954223]
[1757787114404,3.7082,4632.0,4631.9,0.31954223]
[1757787116628,5.89408082,4632.0,4631.9,0.00544223]
[1757787116862,6.16799464,4632.0,4631.9,0.00544223]
[1757787117151,3.51799464,4632.0,4631.9,0.00544223]
[1757787117363,7.11699464,4632.0,4631.9,0.00544223]
[1757787118360,3.51799464,4632.0,4631.9,0.00544223]
[1757787118556,7.11699464,4632.0,4631.9,0.00544223]
[1757787120950,6.34879464,4632.0,4631.9,0.00544223]
[1757787121170,5.86709464,4632.0,4631.9,0.00544223]
[1757787122085,3.7082,4632.0,4631.9,0.00544223]
[1757787122371,5.86709464,4632.0,4631.9,0.00544223]
[1757787123263,6.64969464,4632.0,4631.9,0.00544223]
[1757787123471,7.11699464,4632.0,4631.9,0.00544223]
[1757787124118,8.05341284,4632.0,4631.9,0.00544223]
[1757787124284,14.69370963,4632.0,4631.9,0.00544223]
[1757787124598,14.78010804,4632.0,4631.9,0.00544223]
[1757787124998,17.98225155,4632.0,4631.9,0.00544223]
[1757787125164,17.78010804,4632.0,4631.9,0.00544223]
[1757787125366,17.98218871,4632.0,4631.9,0.00544223]
[1757787125801,8.44465388,4631.9,4631.8,0.001]
[1757787126099,9.66843697,4631.9,4631.8,0.001]
[1757787126301,9.96933697,4631.9,4631.8,0.001]
[1757787126602,10.91833697,4631.9,4631.8,0.001]
[1757787127003,12.67869759,4631.9,4631.8,0.001]
[1757787127829,12.67869759,4631.9,4631.3,0.001]
[1757787127830,6.45417433,4631.4,4631.3,0.001]
[1757787128026,12.96996999,4631.4,4631.3,0.001]
[1757787128322,14.21986999,4631.4,4631.3,0.001]
[1757787128515,14.30628893,4631.4,4631.3,0.001]
[1757787130328,14.10420826,4631.4,4631.3,0.001]
[1757787132518,10.50520826,4631.4,4631.3,0.001]
[1757787132725,14.10420826,4631.4,4631.3,0.001]
[1757787134104,10.50520826,4631.4,4631.3,0.001]
[1757787134300,14.10420826,4631.4,4631.3,0.001]
[1757787134498,9.21020826,4631.4,4631.3,0.001]
[1757787134830,5.84459327,4631.4,4631.3,0.3151]
[1757787135332,2.24559327,4631.4,4631.3,0.3151]
[1757787135539,5.87158294,4631.4,4631.3,0.3151]
[1757787135838,5.84459327,4631.4,4631.3,0.3151]
[1757787136900,5.84459327,4631.4,4631.3,0.001]
[1757787137815,5.84459327,4631.4,4631.3,0.3077]
[1757787138011,0.08641894,4631.4,4631.3,0.3077]
[1757787138226,3.62598967,4631.4,4631.3,0.3077]
[1757787138625,0.02698967,4631.4,4631.3,0.3077]
[1757787138841,3.62598967,4631.4,4631.3,0.3077]
[1757787140240,0.02698967,4631.4,4631.3,0.3077]
[1757787140440,3.62598967,4631.4,4631.3,0.3077]
[1757787140614,3.73318967,4631.4,4631.3,0.3077]
[1757787142051,0.64992508,4632.0,4631.5,2.159119]
[1757787142208,3.73318676,4631.9,4631.6,0.513694]
[1757787142539,3.73318676,4631.9,4631.8,0.3067]
[1757787142977,3.73318676,4631.9,4631.8,0.6784]
[1757787143174,3.7062,4631.9,4631.8,0.6784]
[1757787143680,0.1072,4631.9,4631.8,0.6784]
[1757787143889,3.7062,4631.9,4631.8,0.6784]
[1757787144171,0.1072,4631.9,4631.8,0.6784]
[1757787146176,0.1072,4631.9,4631.8,0.3067]
[1757787146986,0.1072,4631.9,4631.6,0.01081668]
[1757787146987,0.1072,4631.9,4631.3,0.001]
[1757787147290,0.9109,4631.9,4631.3,0.22784872]
[1757787147645,0.93788676,4631.9,4631.3,2.38706379]
[1757787147846,0.13418676,4631.9,4631.3,2.38706379]
[1757787148195,0.13418676,4631.9,4631.4,2.15916956]
[1757787148846,0.13418676,4631.9,4631.3,0.22784872]
[1757787149886,0.13418676,4631.9,4631.3,2.38705987]
[1757787150430,0.13418676,4631.9,4631.3,0.22784872]
[1757787150572,0.13418676,4631.9,4631.3,0.001]
[1757787150906,0.13618676,4631.9,4631.8,0.3067]
[1757787151876,3.7072,4631.9,4631.8,0.3067]
[1757787152981,0.1092,4631.9,4631.8,0.3067]
[1757787153313,0.1092,4631.9,4631.3,0.001]
[1757787153483,0.1092,4631.9,4631.3,2.42422968]
[1757787153691,0.1092,4631.9,4631.8,0.3067]
[1757787154808,0.9129,4631.9,4631.3,0.001]
[1757787155010,1.3476,4631.9,4631.3,0.001]
[1757787156010,1.3476,4631.9,4631.3,2.1602195]
[1757787156208,0.13618676,4631.9,4631.3,2.1602195]
[1757787156678,0.13618676,4631.9,4631.8,0.3067]
[1757787156877,0.1092,4631.9,4631.8,0.3067]
[1757787158225,0.1092,4631.9,4631.3,2.16021539]
[1757787158824,0.1092,4631.9,4631.3,2.16021996]
[1757787159224,0.1092,4631.9,4631.4,2.15914906]
[1757787159593,0.1092,4631.9,4631.8,0.3067]
[1757787160224,0.1092,4631.9,4631.3,2.16021229]
[1757787160707,0.13618676,4631.9,4631.3,2.16021229]
[1757787160904,0.13618676,4631.9,4631.4,2.15914705]
[1757787161117,0.1092,4631.9,4631.8,0.3067]
[1757787161818,0.002,4631.9,4631.8,3.36843721]
[1757787161998,0.002,4631.9,4631.8,3.76187215]
[1757787162329,0.002,4631.9,4631.8,7.87645342]
[1757787162500,0.002,4631.9,4631.8,7.86563721]
[1757787162895,0.002,4631.9,4631.8,8.14105594]
[1757787163113,0.002,4631.9,4631.8,9.34530581]
[1757787163811,0.002,4631.9,4631.8,9.06988708]
[1757787166514,0.002,4631.9,4631.8,8.67803773]
[1757787167146,0.002,4631.9,4631.8,8.53883773]
[1757787167453,0.002,4631.9,4631.8,8.67803773]
[1757787167938,0.002,4631.9,4631.8,9.06988708]
[1757787168818,0.002,4631.9,4631.8,12.34530581]
[1757787170344,0.002,4632.5,4632.0,0.792]
[1757787170541,0.002,4632.5,4632.4,6.05790822]
[1757787170835,0.002,4632.5,4632.4,9.96440822]
[1757787171040,0.002,4632.5,4632.4,10.33610822]
[1757787171352,0.002,4632.5,4632.4,9.96440822]
[1757787171647,0.002,4632.5,4632.4,11.63870176]
[1757787172007,0.002,4632.5,4632.4,12.07346984]
[1757787172204,0.002,4632.5,4632.4,12.44516984]
[1757787172613,0.002,4632.5,4632.4,12.16975111]
[1757787173036,0.002,4632.5,4632.4,12.03055111]
[1757787173460,0.002,4632.5,4632.4,12.44516984]
[1757787174737,0.002,4632.5,4632.4,42.44516984]
[1757787175249,0.002,4632.5,4632.4,42.30596984]
[1757787176477,0.002,4632.5,4632.4,41.93426984]
[1757787178776,0.002,4633.0,4632.7,2.95056843]
[1757787178978,0.002,4633.0,4632.7,11.88064224]
[1757787179282,0.002,4633.0,4632.7,12.26703651]
[1757787183275,0.002,4633.0,4632.7,11.99161778]
[1757787185200,0.002,4633.0,4632.7,11.70161778]
[1757787185497,0.002,4633.0,4632.7,13.30155842]
[1757787187406,0.002,4633.0,4632.7,13.59155842]
[1757787190822,0.002,4633.0,4632.7,13.86697715]
[1757787192074,0.8493,4632.8,4632.7,13.30055842]
[1757787192274,0.8493,4632.8,4632.7,12.90870907]
[1757787192520,1.316,4632.8,4632.7,12.90870907]
[1757787193622,0.082,4632.8,4632.7,12.90870907]
[1757787193927,0.082,4632.8,4632.7,13.30055842]
[1757787196602,0.082,4632.8,4632.7,12.90870907]
[1757787199807,0.082,4632.8,4632.7,13.30055842]
[1757787201823,0.082,4632.8,4632.7,13.61145842]
[1757787202024,0.002,4633.3,4633.0,2.15840321]
[1757787202205,0.002,4633.3,4633.2,3.8992]
[1757787202404,0.002,4633.3,4633.2,4.87736808]
[1757787202637,0.002,4633.3,4633.2,7.03570357]
[1757787203839,0.002,4633.3,4633.2,7.14068548]
[1757787204224,0.002,4633.3,4633.2,37.14068548]
[1757787204411,0.002,4633.3,4633.2,38.50533795]
[1757787205311,0.002,4633.3,4633.2,38.87703795]
[1757787205709,0.002,4633.3,4633.2,38.50533795]
[1757787206120,0.002,4633.5,4633.2,38.50533795]
[1757787206121,0.002,4633.5,4633.4,5.95024232]
[1757787206332,0.4761,4634.5,4634.4,2.94977662]
[1757787206615,0.9322,4634.5,4634.4,8.19977662]
[1757787206818,0.9322,4634.5,4634.4,9.38192394]
[1757787207131,0.9322,4634.5,4634.4,9.58274334]
[1757787207814,1.2313,4634.5,4634.4,9.58274334]
[1757787208139,0.4761,4634.9,4634.7,2.94963695]
[1757787208351,0.5361,4634.8,4634.7,6.55441939]
[1757787208551,0.8352,4634.8,4634.7,6.54363695]
[1757787208719,0.8352,4634.8,4634.7,6.65083695]
[1757787208924,1.3113,4634.8,4634.7,6.65083695]
[1757787210147,1.3113,4634.8,4634.7,4.4932]
[1757787212543,1.3113,4634.8,4634.7,6.65083695]
[1757787212864,1.3113,4634.8,4634.7,4.4932]
[1757787213066,1.3113,4634.8,4634.7,0.1072]
[1757787213367,1.3113,4634.8,4634.7,3.7012]
[1757787217363,1.3113,4634.8,4634.7,0.1072]
[1757787217581,1.3113,4634.8,4634.7,3.7002]
[1757787218349,1.3133,4634.8,4634.7,3.7002]
[1757787218744,1.3133,4634.8,4634.7,0.1072]
[1757787218960,1.3133,4634.8,4634.7,3.593]
[1757787220853,3.49786028,4634.8,4634.7,3.593]
[1757787221158,1.3133,4634.8,4634.7,3.593]
[1757787221796,3.4708904,4634.8,4634.7,3.593]
[1757787222451,1.3133,4634.8,4634.7,3.593]
[1757787223175,3.4708904,4634.8,4634.7,3.593]
[1757787223482,1.3133,4634.8,4634.7,3.593]
[1757787223775,1.34026988,4634.8,4634.5,3.593]
[1757787223946,0.40806988,4634.8,4634.5,3.593]
[1757787224143,0.9322,4634.7,4634.5,3.593]
[1757787224346,1.2313,4634.6,4634.5,3.593]
[1757787228285,0.7752,4634.6,4634.5,3.593]
[1757787228998,1.2292,4634.6,4634.5,3.593]
[1757787233933,0.4761,4634.6,4634.5,3.593]
[1757787234136,0.082,4634.8,4634.5,3.593]
[1757787234302,0.9404,4634.7,4634.5,3.593]
[1757787235133,0.082,4634.8,4634.5,3.593]
[1757787235134,0.082,4634.8,4634.6,0.3145]
[1757787235426,0.082,4634.8,4634.7,3.592]
[1757787235818,0.8494,4634.8,4634.7,3.592]
[1757787236020,1.3104,4634.8,4634.7,3.592]
[1757787237431,0.5614,4634.8,4634.7,3.592]
[1757787237631,0.082,4634.8,4634.7,3.592]
[1757787238352,0.082,4634.8,4634.7,3.9065]
[1757787238646,0.082,4634.8,4634.7,6.8154214]
[1757787239342,0.082,4634.8,4634.7,4.65778445]
[1757787239645,0.082,4634.8,4634.7,3.9065]
[1757787240553,0.082,4634.8,4634.7,6.07491939]
[1757787240769,0.082,4634.8,4634.7,6.06413695]
[1757787240972,0.082,4634.8,4634.7,3.592]
[1757787241269,0.8494,4634.8,4634.7,3.592]
[1757787241481,1.3104,4634.8,4634.7,3.592]
[1757787241976,1.3104,4634.8,4634.6,0.1072]
[1757787242141,1.3104,4634.8,4634.4,1.656]
[1757787242142,1.3104,4634.8,4634.7,3.592]
[1757787242960,3.4679904,4634.8,4634.7,3.592]
[1757787243159,1.88386923,4634.8,4634.6,3.592]
[1757787243453,3.09807947,4634.7,4634.6,3.592]
[1757787243767,3.38607947,4634.7,4634.4,3.592]
[1757787243982,0.1072,4634.6,4634.5,0.792]
[1757787244281,0.082,4634.8,4634.6,2.15764704]
[1757787244442,0.082,4634.8,4634.7,4.30779824]
[1757787244772,0.082,4634.8,4634.7,4.62229824]
[1757787245168,0.082,4634.8,4634.7,6.77993519]
[1757787245374,0.082,4634.8,4634.7,4.62229824]
[1757787245871,0.082,4634.8,4634.7,6.77993519]
[1757787246272,0.082,4634.8,4634.7,4.62229824]
[1757787246435,0.082,4634.8,4634.7,6.77993519]
[1757787247391,0.082,4634.8,4634.7,6.91913519]
[1757787247532,0.082,4634.8,4634.7,8.26561993]
[1757787248054,0.082,4634.8,4634.7,8.35192923]
[1757787249166,0.082,4634.8,4634.7,8.72362923]
[1757787249424,0.082,4634.8,4634.7,8.42179384]
[1757787250478,0.082,4634.8,4634.7,8.05009384]
[1757787251466,0.082,4634.8,4634.7,7.65824449]
[1757787254175,0.5614,4634.8,4634.7,7.45094449]
[1757787254338,0.5614,4634.8,4634.7,7.76544449]
[1757787254339,0.082,4634.8,4634.7,7.76544449]
[1757787254671,0.082,4634.8,4634.7,8.83082923]
[1757787256149,0.082,4634.8,4634.7,8.45912923]
[1757787256490,0.002,4635.6,4635.5,2.15726458]
[1757787256642,0.002,4635.6,4635.5,9.27648706]
[1757787256838,0.002,4635.6,4635.5,9.56754932]
[1757787257257,0.002,4635.6,4635.5,10.02274932]
[1757787257460,0.002,4635.6,4635.5,9.65104932]
[1757787257672,0.002,4635.6,4635.5,11.08479802]
[1757787259581,0.002,4635.6,4635.5,14.08479802]
[1757787260085,0.02695069,4638.1,4635.5,14.08479802]
[1757787260086,1.04335241,4639.1,4635.7,2.15717151]
[1757787260282,1.04335241,4639.1,4635.6,0.792]
[1757787260283,0.77468488,4639.6,4639.1,2.94756472]
[1757787260485,0.4726,4640.6,4639.6,2.15535822]
[1757787260648,0.4726,4640.6,4639.9,2.15521886]
[1757787260843,0.4726,4640.6,4640.1,0.792]
[1757787261047,0.4726,4640.6,4640.3,0.792]
[1757787261258,0.4726,4640.5,4640.4,3.738]
[1757787261459,0.7802,4640.5,4639.7,1.4122094]
[1757787261659,0.4726,4640.4,4639.8,4.53]
[1757787261982,0.4726,4640.3,4639.9,2.15520597]
[1757787262171,0.9278,4640.2,4640.0,3.737]
[1757787262367,0.4552,4640.2,4640.1,3.737]
[1757787262583,0.7628,4640.2,4640.1,3.737]
[1757787262988,0.4726,4640.7,4640.1,3.737]
[1757787263280,0.3076,4640.2,4640.1,3.737]
[1757787263482,0.7802,4640.2,4640.1,3.75855125]
[1757787263779,0.7802,4640.2,4640.1,3.737]
[1757787264284,0.3076,4640.2,4640.1,3.737]
[1757787264494,0.9278,4640.5,4640.1,3.737]
[1757787264784,0.4726,4640.4,4640.1,3.737]
[1757787264989,0.3076,4640.2,4639.7,0.64654128]
[1757787265189,1.05296073,4640.1,4639.8,3.733]
[1757787265377,0.3076,4639.9,4639.8,3.733]
[1757787265573,1.2354,4639.9,4639.8,0.19777118]
[1757787265797,0.7802,4639.9,4639.8,0.19777118]
[1757787265995,0.7802,4639.9,4639.7,3.734]
[1757787266452,0.66774226,4639.9,4639.7,3.734]
[1757787267184,0.66774226,4639.9,4639.8,2.17681796]
[1757787267185,0.19514226,4639.9,4639.8,2.17681796]
[1757787267486,0.4552,4640.2,4639.8,0.30470825]
[1757787267789,0.4552,4640.2,4639.9,3.93150825]
[1757787267790,0.4726,4640.1,4639.9,3.93150825]
[1757787268103,0.7802,4640.0,4639.9,3.734]
[1757787268281,0.7802,4640.0,4639.9,3.9314934]
[1757787268480,1.35894,4640.0,4639.8,3.735]
[1757787268682,0.43114,4640.0,4639.8,3.735]
[1757787268984,0.9278,4639.9,4639.8,3.735]
[1757787269149,1.2354,4639.9,4639.8,3.93241199]
[1757787270077,1.2354,4639.9,4639.8,3.735]
[1757787270549,1.2374,4639.9,4639.8,3.735]
[1757787273890,0.3096,4639.9,4639.8,5.89026531]
[1757787274786,0.3096,4639.9,4639.8,6.6579832]
[1757787274787,0.002,4639.9,4639.8,6.6579832]
[1757787274990,0.002,4639.9,4639.8,6.7651832]
[1757787275594,0.002,4639.9,4639.8,7.5571832]
[1757787275811,0.002,4639.9,4639.8,7.6643832]
[1757787277512,0.002,4639.9,4639.8,7.5571832]
[1757787279415,0.002,4639.9,4639.8,7.75455997]
[1757787282029,0.002,4639.9,4639.8,8.74555106]
[1757787282924,0.9278,4642.6,4640.1,0.792]
[1757787283106,0.4552,4642.2,4640.7,0.792]
[1757787283312,0.4552,4642.2,4640.8,40.99727997]
[1757787283313,0.4726,4642.1,4640.8,40.99727997]
[1757787283921,0.4726,4642.1,4640.8,42.38767997]
[1757787284123,0.4726,4642.1,4640.8,44.00209101]
[1757787285537,0.4726,4642.1,4640.8,44.76049452]
[1757787285987,1.2648,4640.9,4640.8,0.6700982]
[1757787286189,1.2648,4640.9,4640.3,4.32681204]
[1757787286417,0.96620732,4640.8,4640.4,0.76792737]
[1757787286614,0.96620732,4640.8,4640.5,3.789]
[1757787286800,0.95,4640.7,4640.6,3.789]
[1757787287009,1.2628,4640.7,4640.6,3.789]
[1757787287409,1.2628,4640.7,4640.1,0.67701204]
[1757787287728,2.15500528,4640.4,4639.9,0.56981204]
[1757787287892,0.3128,4640.0,4639.9,0.56981204]
[1757787288219,1.2628,4640.0,4639.8,0.001]
[1757787288891,1.62242187,4640.0,4639.8,0.001]
[1757787289105,1.27900732,4640.0,4639.8,0.001]
[1757787289419,2.17142618,4639.9,4639.8,0.001]
[1757787289934,3.38732618,4639.9,4639.8,0.001]
[1757787290137,0.30630732,4639.9,4639.8,0.3162]
[1757787290298,0.4578,4641.6,4640.0,3.792]
[1757787290503,0.9258,4641.6,4640.7,1.1478292]
[1757787290714,0.9258,4641.6,4640.2,3.0]
[1757787290715,0.468,4641.0,4640.8,3.851]
[1757787291197,0.2921,4640.9,4640.8,3.851]
[1757787291403,1.2179,4640.9,4640.8,3.851]
[1757787292306,1.2179,4640.9,4640.8,6.00580089]
[1757787292836,0.2921,4640.9,4640.8,6.00580089]
[1757787294047,0.002,4640.9,4640.8,6.00580089]
[1757787294405,0.002,4640.9,4640.8,3.851]
[1757787294599,0.002,4640.9,4640.8,6.00580089]
[1757787295047,0.2921,4640.9,4640.8,6.00580089]
[1757787295534,0.002,4640.9,4640.8,10.46883009]
[1757787295737,0.002,4640.9,4640.8,9.00580089]
[1757787296515,0.002,4640.9,4640.8,9.32100089]
[1757787297057,0.002,4640.9,4640.8,9.00580089]
[1757787300270,0.002,4640.9,4640.8,10.6130884]
[1757787300626,0.2921,4640.9,4640.8,7.2978884]
[1757787301072,0.002,4640.9,4640.8,8.44453361]
[1757787302427,0.002,4640.9,4640.8,8.75973361]
[1757787303280,1e-08,4641.4,4640.9,0.792]
[1757787303429,1e-08,4641.4,4641.3,6.26176876]
[1757787303736,1e-08,4641.4,4641.3,40.96793177]
[1757787303946,1e-08,4641.4,4641.3,41.85883177]
[1757787304241,1e-08,4641.4,4641.3,43.3892707]
[1757787304437,1e-08,4641.4,4641.3,41.85883177]
[1757787304741,1e-08,4641.4,4641.3,45.00672075]
[1757787305075,1e-08,4641.4,4641.3,43.47628182]
[1757787307661,0.00200001,4641.4,4641.3,43.47628182]
[1757787308937,0.08,4642.8,4642.7,2.94591905]
[1757787309140,0.08,4642.8,4642.7,11.43591905]
[1757787309352,0.3701,4642.8,4642.7,12.90930671]
[1757787311557,0.08,4642.8,4642.7,12.90930671]
[1757787312261,0.3701,4642.8,4642.7,12.90930671]
[1757787313232,0.08,4642.8,4642.7,13.22450671]
[1757787314047,0.3701,4642.8,4642.7,12.90930671]
[1757787314263,0.08,4642.8,4642.7,12.90930671]
[1757787315358,0.08,4642.8,4642.7,13.67022585]
[1757787315735,0.08,4642.8,4642.7,13.21420671]
[1757787316868,0.08,4642.8,4642.7,13.97482694]